fUSD/lending_fUSD_20250530
["ID","MTS","AMOUNT","RATE_DAILY","PERIOD"]
[363115769,1748586644166,-420.0,0.00021917,2]
[363115770,1748586644175,-1076.56,0.00021917,2]
[363115771,1748586644185,-420.0,0.00021917,2]
[363115772,1748586644195,-420.0,0.00021917,2]
[363115773,1748586644205,-932.21,0.00021917,2]
[363115774,1748586644214,-2153.83,0.00021917,2]
[363115775,1748586644224,-949.01,0.00021917,2]
[363115776,1748586644234,-420.0,0.00021917,2]
[363115777,1748586644243,-6048.89,0.00021917,2]
[363115778,1748586644253,-515.24,0.00021917,2]
[363115779,1748586644263,-513.60756922,0.00021917,2]
[363115780,1748586644273,-612.08,0.00021917,2]
[363115781,1748586644282,-746.63,0.00021917,2]
[363115782,1748586644292,-403.29972029,0.00021917,2]
[363115783,1748586644301,-740.14,0.00021917,2]
[363115784,1748586644310,-812.16,0.00021917,2]
[363115785,1748586644320,-420.0,0.00021917,2]
[363115786,1748586644330,-429.09,0.00021917,2]
[363115787,1748586644339,-8017.52,0.00021917,2]
[363115788,1748586644349,-420.0,0.00021917,2]
[363115789,1748586644359,-1647.18,0.00021917,2]
[363115790,1748586644369,-420.0,0.00021917,2]
[363115791,1748586644379,-420.0,0.00021917,2]
[363115792,1748586644389,-519.46,0.00021917,2]
[363115793,1748586644399,-948.62,0.00021917,2]
[363115794,1748586644409,-1522.75,0.00021917,2]
[363115795,1748586644419,-420.0,0.00021917,2]
[363115796,1748586644429,-420.0,0.00021917,2]
[363115797,1748586644439,-465.38,0.00021917,2]
[363115798,1748586644450,-1138.63,0.00021917,2]
[363115799,1748586644460,-420.0,0.00021917,2]
[363115800,1748586644469,-11825.95,0.00021917,2]
[363115801,1748586644479,-420.0,0.00021917,2]
[363115812,1748586644668,-2696.41,0.00021917,2]
[363115813,1748586644708,-420.0,0.00021917,2]
[363115814,1748586644718,-780.76,0.00021917,2]
[363115815,1748586644728,-420.0,0.00021917,2]
[363115816,1748586644737,-500.0,0.00021917,2]
[363115817,1748586644747,-420.0,0.00021917,2]
[363115818,1748586644757,-719.39,0.00021917,2]
[363115819,1748586644766,-1165.9,0.00021917,2]
[363115820,1748586644776,-420.0,0.00021917,2]
[363115821,1748586644786,-1269.19,0.00021917,2]
[363115822,1748586644795,-889.34,0.00021917,2]
[363115823,1748586644805,-420.0,0.00021917,2]
[363115824,1748586644815,-703.71,0.00021917,2]
[363115825,1748586644825,-585.44,0.00021917,2]
[363115826,1748586644834,-420.0,0.00021917,2]
[363115827,1748586644846,-2788.43,0.00021917,2]
[363115828,1748586644856,-35544.81,0.00021917,2]
[363115829,1748586644866,-500.0,0.00021917,2]
[363115830,1748586644876,-500.0,0.00021917,2]
[363115831,1748586644886,-500.0,0.00021917,2]
[363115832,1748586644896,-448.34,0.00021917,2]
[363115833,1748586644905,-549.52,0.00021917,2]
[363115834,1748586644915,-10882.56,0.00021917,2]
[363115835,1748586644925,-427.0341979,0.00021917,2]
[363115836,1748586644935,-1336.51,0.00021917,2]
[363115837,1748586644945,-1566.47,0.00021917,2]
[363115838,1748586644955,-940.04,0.00021917,2]
[363115839,1748586644966,-2352.8,0.00021917,2]
[363115840,1748586644977,-992.39,0.00021917,2]
[363115841,1748586644988,-591.0,0.00021917,2]
[363115842,1748586644998,-420.0,0.00021917,2]
[363115843,1748586645008,-151.0,0.00021917,2]
[363115844,1748586645021,-974.26,0.00021917,2]
[363115845,1748586645031,-595.93,0.00021917,2]
[363115846,1748586645041,-2766.65,0.00021917,2]
[363115847,1748586645050,-3465.07,0.00021917,2]
[363115848,1748586645058,-420.0,0.00021917,2]
[363115849,1748586645067,-1110.75,0.00021917,2]
[363115850,1748586645076,-1948.32,0.00021917,2]
[363115851,1748586645086,-1682.87,0.00021917,2]
[363115852,1748586645095,-420.0,0.00021917,2]
[363115853,1748586645104,-464.03,0.00021917,2]
[363115854,1748586645113,-3396.38,0.00021917,2]
[363115855,1748586645122,-4637.04,0.00021917,2]
[363115856,1748586645131,-151.0,0.00021917,2]
[363115858,1748586645140,-151.0,0.00021917,2]
[363115859,1748586645149,-420.0,0.00021917,2]
[363115860,1748586645158,-420.0,0.00021917,2]
[363115861,1748586645167,-420.0,0.00021917,2]
[363115862,1748586645176,-420.0,0.00021917,2]
[363115863,1748586645185,-2172.14,0.00021917,2]
[363115864,1748586645195,-420.0,0.00021917,2]
[363115865,1748586645204,-151.0,0.00021917,2]
[363115866,1748586645213,-1015.9,0.00021917,2]
[363115867,1748586645222,-6926.33,0.00021917,2]
[363115868,1748586645231,-751.91,0.00021917,2]
[363115869,1748586645240,-844.27,0.00021917,2]
[363115870,1748586645249,-655.52,0.00021917,2]
[363115871,1748586645258,-3425.12,0.00021917,2]
[363115872,1748586645267,-420.0,0.00021917,2]
[363115873,1748586645277,-1784.65,0.00021917,2]
[363115874,1748586645286,-1421.53,0.00021917,2]
[363115875,1748586645295,-600.38,0.00021917,2]
[363115876,1748586645304,-512.83,0.00021917,2]
[363115877,1748586645313,-420.0,0.00021917,2]
[363115878,1748586645322,-420.0,0.00021917,2]
[363115879,1748586645331,-7716.17,0.00021917,2]
[363115880,1748586645341,-5611.72,0.00021917,2]
[363115881,1748586645350,-483.12,0.00021917,2]
[363115882,1748586645359,-713.08,0.00021917,2]
[363115883,1748586645369,-1516.11,0.00021917,2]
[363115884,1748586645378,-1520.73,0.00021917,2]
[363115885,1748586645388,-546.55,0.00021917,2]
[363115886,1748586645398,-420.0,0.00021917,2]
[363115887,1748586645408,-1111.88,0.00021917,2]
[363115888,1748586645417,-941.98,0.00021917,2]
[363115889,1748586645427,-928.71,0.00021917,2]
[363115890,1748586645437,-1408.42,0.00021917,2]
[363115891,1748586645447,-10179.48,0.00021917,2]
[363115892,1748586645457,-420.0,0.00021917,2]
[363115893,1748586645467,-420.0,0.00021917,2]
[363115894,1748586645477,-3531.94,0.00021917,2]
[363115895,1748586645486,-642.07,0.00021917,2]
[363115896,1748586645496,-957.99,0.00021917,2]
[363115897,1748586645506,-412.03727996,0.00021917,2]
[363115898,1748586645516,-1853.26,0.00021917,2]
[363115899,1748586645527,-857.34,0.00021917,2]
[363115900,1748586645537,-3006.36,0.00021917,2]
[363115901,1748586645546,-465.01,0.00021917,2]
[363115902,1748586645555,-683.0,0.00021917,2]
[363115903,1748586645566,-794.82,0.00021917,2]
[363115904,1748586645576,-420.0,0.00021917,2]
[363115905,1748586645586,-927.06,0.00021917,2]
[363115906,1748586645595,-420.0,0.00021917,2]
[363115907,1748586645605,-11688.35,0.00021917,2]
[363115908,1748586645616,-1273.61,0.00021917,2]
[363115909,1748586645626,-585.89,0.00021917,2]
[363115910,1748586645635,-12003.21,0.00021917,2]
[363115911,1748586645645,-2352.81,0.00021917,2]
[363115912,1748586645655,-8128.2,0.00021917,2]
[363115913,1748586645664,-420.0,0.00021917,2]
[363115914,1748586645674,-420.0,0.00021917,2]
[363115915,1748586645685,-751.87,0.00021917,2]
[363115916,1748586645695,-151.0,0.00021917,2]
[363115917,1748586645706,-4484.39,0.00021917,2]
[363115918,1748586645715,-420.0,0.00021917,2]
[363115919,1748586645725,-420.0,0.00021917,2]
[363115920,1748586645735,-420.0,0.00021917,2]
[363115921,1748586645745,-420.0,0.00021917,2]
[363115922,1748586645754,-1226.5,0.00021917,2]
[363115923,1748586645764,-873.39,0.00021917,2]
[363115924,1748586645774,-1608.7,0.00021917,2]
[363115925,1748586645783,-420.0,0.00021917,2]
[363115926,1748586645793,-512.46,0.00021917,2]
[363115927,1748586645803,-1070.6,0.00021917,2]
[363115928,1748586645813,-420.0,0.00021917,2]
[363115929,1748586645823,-3865.57,0.00021917,2]
[363115930,1748586645832,-436.31,0.00021917,2]
[363115931,1748586645842,-420.0,0.00021917,2]
[363115932,1748586645852,-420.0,0.00021917,2]
[363115933,1748586645862,-420.0,0.00021917,2]
[363115934,1748586645872,-3229.35,0.00021917,2]
[363115935,1748586645881,-2599.73,0.00021917,2]
[363115936,1748586645891,-1486.8,0.00021917,2]
[363115937,1748586645901,-23674.46,0.00021917,2]
[363115938,1748586645911,-2788.82,0.00021917,2]
[363115939,1748586645920,-1794.39,0.00021917,2]
[363115940,1748586645929,-876.19,0.00021917,2]
[363115941,1748586645939,-1198.34,0.00021917,2]
[363115942,1748586645950,-4275.41,0.00021917,2]
[363115943,1748586645959,-448.23,0.00021917,2]
[363115944,1748586645968,-420.0,0.00021917,2]
[363115945,1748586645978,-1154.39,0.00021917,2]
[363115946,1748586645988,-935.02,0.00021917,2]
[363115947,1748586645998,-932.27,0.00021917,2]
[363115948,1748586646007,-843.43,0.00021917,2]
[363115949,1748586646016,-420.0,0.00021917,2]
[363115950,1748586646026,-420.0,0.00021917,2]
[363115951,1748586646036,-420.0,0.00021917,2]
[363115952,1748586646045,-815.01,0.00021917,2]
[363115953,1748586646055,-151.0,0.00021917,2]
[363115954,1748586646064,-420.0,0.00021917,2]
[363115955,1748586646074,-700.81,0.00021917,2]
[363115956,1748586646083,-1100.16,0.00021917,2]
[363115957,1748586646093,-574.43,0.00021917,2]
[363115958,1748586646113,-643.1,0.00021917,2]
[363115959,1748586646125,-470.32,0.00021917,2]
[363115960,1748586646135,-153.978837,0.00021917,2]
[363115961,1748586646146,-608.25,0.00021917,2]
[363115962,1748586646156,-420.0,0.00021917,2]
[363115963,1748586646167,-2756.26,0.00021917,2]
[363115964,1748586646177,-420.0,0.00021917,2]
[363115965,1748586646188,-151.0,0.00021917,2]
[363115966,1748586646199,-730.03,0.00021917,2]
[363115967,1748586646210,-1024.74,0.00021917,2]
[363115968,1748586646220,-1399.69,0.00021917,2]
[363115969,1748586646231,-1609.43,0.00021917,2]
[363115970,1748586646241,-420.0,0.00021917,2]
[363115971,1748586646250,-1311.13,0.00021917,2]
[363115972,1748586646260,-4233.77,0.00021917,2]
[363115973,1748586646271,-21985.04,0.00021917,2]
[363115974,1748586646281,-895.2,0.00021917,2]
[363115975,1748586646291,-480.05,0.00021917,2]
[363115976,1748586646301,-3803.82,0.00021917,2]
[363115977,1748586646311,-420.0,0.00021917,2]
[363115978,1748586646321,-420.0,0.00021917,2]
[363115979,1748586646331,-608.23,0.00021917,2]
[363115980,1748586646341,-1920.74,0.00021917,2]
[363115981,1748586646352,-1035.08,0.00021917,2]
[363115982,1748586646362,-588.03,0.00021917,2]
[363115983,1748586646372,-3071.03,0.00021917,2]
[363115984,1748586646382,-420.0,0.00021917,2]
[363115985,1748586646392,-420.0,0.00021917,2]
[363115986,1748586646402,-1598.41,0.00021917,2]
[363115987,1748586646412,-151.0,0.00021917,2]
[363115989,1748586646423,-423.21,0.00021917,2]
[363115990,1748586646433,-698.39,0.00021917,2]
[363115991,1748586646443,-981.54,0.00021917,2]
[363115992,1748586646453,-420.0,0.00021917,2]
[363115993,1748586646463,-666.74,0.00021917,2]
[363115994,1748586646473,-236.93293961,0.00021917,2]
[363115995,1748586646483,-420.0,0.00021917,2]
[363115996,1748586646494,-151.0,0.00021917,2]
[363115997,1748586646504,-420.0,0.00021917,2]
[363115998,1748586646514,-2870.58,0.00021917,2]
[363115999,1748586646524,-151.0,0.00021917,2]
[363116000,1748586646536,-1050.97,0.00021917,2]
[363116001,1748586646546,-420.0,0.00021917,2]
[363116002,1748586646556,-3307.4,0.00021917,2]
[363116003,1748586646567,-754.06,0.00021917,2]
[363116004,1748586646577,-420.0,0.00021917,2]
[363116005,1748586646587,-656.93,0.00021917,2]
[363116006,1748586646597,-3576.92,0.00021917,2]
[363116007,1748586646608,-7371.91,0.00021917,2]
[363116008,1748586646617,-580.51,0.00021917,2]
[363116009,1748586646626,-5251.07,0.00021917,2]
[363116010,1748586646635,-731.87,0.00021917,2]
[363116011,1748586646643,-420.0,0.00021917,2]
[363116012,1748586646651,-753.25,0.00021917,2]
[363116014,1748586646661,-420.0,0.00021917,2]
[363116015,1748586646670,-420.0,0.00021917,2]
[363116016,1748586646679,-420.0,0.00021917,2]
[363116017,1748586646688,-811.49,0.00021917,2]
[363116018,1748586646698,-1236.32,0.00021917,2]
[363116019,1748586646708,-424.93249883,0.00021917,2]
[363116021,1748586646718,-420.0,0.00021917,2]
[363116023,1748586646728,-167.69555169,0.00021917,2]
[363116025,1748586646738,-1751.79,0.00021917,2]
[363116027,1748586646747,-4605.47,0.00021917,2]
[363116029,1748586646757,-2685.28,0.00021917,2]
[363116031,1748586646767,-640.52,0.00021917,2]
[363116033,1748586646776,-779.13,0.00021917,2]
[363116035,1748586646786,-1962.72,0.00021917,2]
[363116037,1748586646795,-420.0,0.00021917,2]
[363116039,1748586646805,-474.6,0.00021917,2]
[363116041,1748586646815,-5481.59,0.00021917,2]
[363116043,1748586646825,-505.08,0.00021917,2]
[363116045,1748586646835,-541.9,0.00021917,2]
[363116047,1748586646845,-420.0,0.00021917,2]
[363116049,1748586646854,-420.0,0.00021917,2]
[363116052,1748586646864,-1672.85,0.00021917,2]
[363116053,1748586646875,-420.0,0.00021917,2]
[363116056,1748586646884,-661.13,0.00021917,2]
[363116057,1748586646893,-420.0,0.00021917,2]
[363116059,1748586646903,-420.0,0.00021917,2]
[363116062,1748586646913,-2908.62,0.00021917,2]
[363116063,1748586646922,-420.0,0.00021917,2]
[363116067,1748586646932,-1631.11,0.00021917,2]
[363116069,1748586646941,-151.0,0.00021917,2]
[363116070,1748586646950,-1048.02,0.00021917,2]
[363116073,1748586646960,-882.95,0.00021917,2]
[363116075,1748586646969,-420.0,0.00021917,2]
[363116077,1748586646979,-1300.06,0.00021917,2]
[363116079,1748586646989,-420.0,0.00021917,2]
[363116081,1748586646998,-420.0,0.00021917,2]
[363116083,1748586647009,-643.76,0.00021917,2]
[363116085,1748586647018,-420.0,0.00021917,2]
[363116087,1748586647028,-485.62583867,0.00021918,2]
[363116089,1748586647037,-210.0,0.0002192,2]
[363116101,1748586647140,-4951.58356043,0.00021925,2]
[363116103,1748586647150,-151.0,0.00021925,7]
[363116105,1748586647160,-151.0,0.00021925,7]
[363116107,1748586647169,-151.0,0.00021925,7]
[363116109,1748586647178,-159.532442,0.00021973,2]
[363116111,1748586647188,-500.0,0.00021973,2]
[363116113,1748586647198,-500.0,0.00021973,2]
[363116115,1748586647207,-500.0,0.00021973,2]
[363116117,1748586647217,-230.73107332,0.00021976,2]
[363116119,1748586647227,-870.757728,0.0002199,3]
[363116121,1748586647236,-166.0,0.00022,2]
[363116123,1748586647245,-236.0,0.00022,2]
[363116125,1748586647255,-200.0,0.00022,2]
[363116127,1748586647264,-250.0,0.00022,2]
[363116129,1748586647274,-1000.0,0.00022017,2]
[363116131,1748586647283,-1000.0,0.00022017,2]
[363116133,1748586647292,-1000.0,0.00022017,2]
[363116135,1748586647302,-1000.0,0.00022017,2]
[363116137,1748586647311,-1000.0,0.00022017,2]
[363116139,1748586647321,-1000.0,0.00022017,2]
[363116141,1748586647330,-1000.0,0.00022017,2]
[363116143,1748586647339,-1000.0,0.00022017,2]
[363116145,1748586647349,-1000.0,0.00022017,2]
[363116147,1748586647358,-1000.0,0.00022017,2]
[363116149,1748586647367,-1000.0,0.00022018,7]
[363116151,1748586647376,-1000.0,0.00022018,7]
[363116153,1748586647386,-1000.0,0.00022018,7]
[363116155,1748586647396,-1000.0,0.00022018,7]
[363116157,1748586647406,-1000.0,0.00022018,7]
[363116159,1748586647415,-1000.0,0.00022018,7]
[363116161,1748586647424,-1000.0,0.00022018,7]
[363116163,1748586647434,-1000.0,0.00022018,7]
[363116165,1748586647443,-1000.0,0.00022018,7]
[363116167,1748586647454,-1000.0,0.00022018,7]
[363116169,1748586647463,-171.24525059,0.00022027,2]
[363116171,1748586647472,-3430.04266963,0.00022071,2]
[363116173,1748586647481,-507.9516225,0.00022091,2]
[363116175,1748586647490,-184.45375264,0.00022091,2]
[363116177,1748586647500,-749.51480488,0.00022091,2]
[363116179,1748586647509,-230.73107332,0.00022091,2]
[363116180,1748586647519,-2562.7888642,0.00022091,2]
[363116181,1748586647529,-930.695,0.00022148,2]
[363116182,1748586647540,-500.0,0.00022173,2]
[363116183,1748586647549,-500.0,0.00022173,2]
[363116184,1748586647558,-500.0,0.00022173,2]
[363116185,1748586647567,-152.86932215,0.00022173,2]
[363116186,1748586647576,-342.25799957,0.00022173,2]
[363116187,1748586647586,-500.0,0.00022173,2]
[363116188,1748586647595,-500.0,0.00022173,2]
[363116189,1748586647604,-500.0,0.00022173,2]
[363116191,1748586647614,-190.08817702,0.00022181,2]
[363116193,1748586647623,-150.0,0.00022181,2]
[363116195,1748586647633,-150.0,0.00022181,3]
[363116197,1748586647642,-150.0,0.00022182,3]
[363116199,1748586647652,-150.0,0.00022182,3]
[363116201,1748586647661,-150.0,0.00022183,3]
[363116202,1748586647670,-150.0,0.00022183,3]
[363116203,1748586647680,-150.0,0.00022183,3]
[363116204,1748586647689,-150.0,0.00022183,3]
[363116205,1748586647699,-150.0,0.00022183,3]
[363116206,1748586647711,-151.0,0.00022183,7]
[363116207,1748586647720,-151.0,0.00022183,7]
[363116208,1748586647730,-151.0,0.00022183,7]
[363116209,1748586647739,-151.0,0.00022183,7]
[363116210,1748586647749,-151.0,0.00022183,7]
[363116211,1748586647758,-150.0,0.00022184,3]
[363116212,1748586647768,-150.0,0.00022185,3]
[363116213,1748586647777,-150.0,0.00022186,3]
[363116214,1748586647787,-150.0,0.00022187,3]
[363116215,1748586647796,-206.93668881,0.00022188,3]
[363116216,1748586647805,-310.28425939,0.0002219,2]
[363116217,1748586647815,-420.0,0.0002219,2]
[363116218,1748586647824,-178.44810261,0.0002219,2]
[363116219,1748586647834,-500.0,0.0002219,2]
[363116220,1748586647844,-500.0,0.0002219,2]
[363116221,1748586647855,-500.0,0.0002219,2]
[363116222,1748586647864,-426.68913907,0.0002219,3]
[363116223,1748586647873,-317387.33159408,0.00022191,3]
[363116224,1748586648416,-381.59225543,0.00022191,3]
[363116225,1748586649148,-473.92007797,0.00020475,2]
[363116226,1748586649188,-342.54297508,0.00020475,2]
[363116227,1748586649198,-816.46305305,0.00020751,2]
[363116228,1748586649208,-816.46305305,0.00021042,2]
[363116229,1748586649218,-816.46305305,0.00021296,2]
[363116230,1748586649228,-816.46305305,0.00021388,2]
[363116231,1748586649237,-1016.14,0.00021917,2]
[363116232,1748586649247,-886.2,0.00021917,2]
[363116233,1748586649257,-420.0,0.00021917,2]
[363116234,1748586649266,-420.0,0.00021917,2]
[363116235,1748586649275,-420.0,0.00021917,2]
[363116236,1748586649284,-420.0,0.00021917,2]
[363116237,1748586649294,-151.0,0.00021917,2]
[363116238,1748586649303,-151.0,0.00021917,2]
[363116239,1748586649313,-420.0,0.00021917,2]
[363116240,1748586649323,-223602.62824429,0.00022191,3]
[363116241,1748586649451,-0.0038379,0.00022191,3]
[363116242,1748586650632,-215.0,0.00021008,2]
[363116243,1748586650642,-307.5,0.00021417,2]
[363116244,1748586650722,-633.5,0.00021417,2]
[363116245,1748586650732,-816.46305305,0.00021686,2]
[363116246,1748586650743,-466.83,0.00021917,2]
[363116247,1748586650753,-151.0,0.00021917,2]
[363116248,1748586650763,-420.0,0.00021917,2]
[363116249,1748586650774,-420.0,0.00021917,2]
[363116250,1748586650784,-816.46305307,0.00022039,2]
[363116251,1748586650794,-4634.2631973,0.00022191,3]
[363116252,1748586650805,-17439.19300254,0.00022191,3]
[363116253,1748586650817,-11180.75748825,0.00022191,3]
[363116254,1748586650829,-556.3898016,0.00022191,3]
[363116255,1748586650991,-841.09078813,0.00022191,3]
[363116256,1748586651003,-735.915,0.00022191,3]
[363116257,1748586651015,-785.78656316,0.00022191,3]
[363116258,1748586651027,-20480.64300172,0.00022191,3]
[363116259,1748586651082,-727.93842349,0.00022191,3]
[363116260,1748586651094,-12817.6468411,0.00022191,3]
[363116261,1748586651113,-580.49469773,0.00022191,3]
[363116262,1748586651129,-1850.7145572,0.00022191,3]
[363116263,1748586651140,-5376.445856,0.00022191,3]
[363116264,1748586651152,-300.42878841,0.00022191,3]
[363116265,1748586651499,-282.78234949,0.00021917,2]
[363116266,1748586651517,-137.21765051,0.00021917,2]
[363116267,1748586651529,-16212.41634949,0.00022191,3]
[363116268,1748586651545,-22705.07151393,0.00022191,3]
[363116269,1748586651558,-1752.9089978,0.00022191,3]
[363116270,1748586651572,-804.31061819,0.00022191,3]
[363116271,1748586651585,-5375.31443049,0.00022191,3]
[363116272,1748586651880,-914.60609261,0.00022191,3]
[363116273,1748586651904,-1135.03040916,0.00022191,3]
[363116274,1748586651919,-669.0,0.00022191,3]
[363116275,1748586651931,-15599.8360844,0.00022191,3]
[363116276,1748586652103,-6086.98009117,0.00022191,3]
[363116277,1748586652115,-5671.56636744,0.00022191,3]
[363116278,1748586652130,-323.57617519,0.00022191,3]
[363116279,1748586652144,-1484.73048015,0.00022191,3]
[363116280,1748586652154,-314.51802562,0.00022191,3]
[363116281,1748586652174,-679.53765876,0.00022191,3]
[363116282,1748586661921,500.0,0.00019164,2]
[363116283,1748586750346,500.0,0.00019164,2]
[363116285,1748587609195,-500.0,0.0002026,2]
[363116286,1748587609217,-57.20585398,0.00020939,2]
[363116287,1748587669353,500.0,0.00019164,2]
[363116288,1748587676443,-202.74094211,0.00020939,2]
[363116289,1748587680492,185.18,0.00013699,2]
[363116301,1748587794145,205.28,0.00016712,2]
[363116308,1748587832226,-185.18,0.00020187,2]
[363116309,1748587832236,-4098.94,0.00020841,2]
[363116310,1748587832246,-740.05320391,0.00020939,2]
[363116311,1748587832256,-173.12,0.00020975,2]
[363116312,1748587832266,-150.0,0.00020989,7]
[363116313,1748587832276,-150.0,0.00021121,2]
[363116314,1748587832285,-816.46305305,0.00021151,2]
[363116315,1748587832295,-891.26,0.00021152,2]
[363116316,1748587832305,-500.0,0.00021356,2]
[363116317,1748587832315,-620.4731698,0.00021451,2]
[363116318,1748587832331,-579.5268302,0.00021451,2]
[363116319,1748587832341,-630.0,0.00021452,2]
[363116320,1748587832350,-816.46305305,0.00021547,2]
[363116321,1748587832360,-168.8,0.00021578,2]
[363116322,1748587832370,-300.0,0.00021599,2]
[363116323,1748587832380,-150.0,0.000216,2]
[363116324,1748587832390,-300.0,0.000216,2]
[363116325,1748587832400,-336.65,0.000216,2]
[363116326,1748587832410,-150.0,0.000216,2]
[363116327,1748587832420,-375.56,0.000217,2]
[363116328,1748587832429,-957.91117764,0.00021747,2]
[363116329,1748587832439,-816.46305305,0.00021762,2]
[363116330,1748587832448,-152.43,0.000218,2]
[363116331,1748587832457,-207.4,0.00021804,2]
[363116332,1748587832469,-301.32,0.00021813,2]
[363116333,1748587832478,-302.84,0.00021813,2]
[363116334,1748587832488,-302.47,0.00021813,2]
[363116335,1748587832498,-305.97,0.00021813,2]
[363116336,1748587832507,-1009.451,0.00021816,2]
[363116337,1748587832516,-26870.51961635,0.00021817,2]
[363116338,1748587832528,-750.265413,0.00021817,2]
[363116339,1748587832540,-1218.45,0.00021817,2]
[363116340,1748587832552,-583.18548524,0.00021817,2]
[363116341,1748587832578,-544.02,0.00021817,2]
[363116343,1748587832605,-400.0,0.00021817,2]
[363116344,1748587832617,-2994.74596785,0.00021817,2]
[363116345,1748587832628,-302.53722687,0.00021817,2]
[363116346,1748587838027,-360.78,0.00021817,2]
[363116347,1748587838444,-478.736916,0.00021817,2]
[363116484,1748587840162,-1474.30507469,0.00021817,2]
[363116486,1748587840172,-179.3885,0.00021817,2]
[363116488,1748587840181,-16443.7,0.00021817,2]
[363116490,1748587840190,-130.64860294,0.00021817,2]
[363116496,1748587840234,-36.18740156,0.00021817,2]
[363116498,1748587840243,-2061.09259844,0.00021817,2]
[363116500,1748587840254,-637.97160692,0.00021817,2]
[363116502,1748587840266,-3097.59162696,0.00021817,2]
[363116504,1748587840275,-163.7738703,0.00021817,2]
[363116506,1748587840284,-5796.65583232,0.00021874,2]
[363116508,1748587840293,-1115.157653,0.00021904,2]
[363116510,1748587840302,-151.0,0.00021904,2]
[363116512,1748587840312,-510.2916441,0.00021916,2]
[363116514,1748587840322,-632.75129304,0.00021916,2]
[363116516,1748587840331,-500.0,0.00021916,2]
[363116518,1748587840340,-500.0,0.00021916,2]
[363116520,1748587840349,-500.0,0.00021916,2]
[363116522,1748587840359,-500.0,0.00021916,2]
[363116524,1748587840368,-500.0,0.00021916,2]
[363116526,1748587840377,-500.0,0.00021916,2]
[363116528,1748587840386,-371.06720486,0.00021916,2]
[363116530,1748587840396,-500.0,0.00021916,2]
[363116532,1748587840405,-172.58,0.00021916,2]
[363116533,1748587840415,-500.0,0.00021916,2]
[363116535,1748587840425,-255.4901702,0.00021916,2]
[363116537,1748587840434,-151.0,0.00021917,2]
[363116539,1748587840443,-151.362671,0.00021917,2]
[363116541,1748587840452,-420.0,0.00021917,2]
[363116543,1748587840461,-669.206958,0.00021917,2]
[363116545,1748587840473,-773.433559,0.00021917,2]
[363116547,1748587840482,-420.0,0.00021917,2]
[363116549,1748587840492,-381.1673508,0.00021917,2]
[363116551,1748587840501,-420.0,0.00021917,2]
[363116553,1748587840510,-812.22,0.00021917,2]
[363116554,1748587840520,-513.02,0.00021917,2]
[363116555,1748587840529,-420.0,0.00021917,2]
[363116556,1748587840538,-420.0,0.00021917,2]
[363116557,1748587840548,-420.0,0.00021917,2]
[363116558,1748587840558,-485.94,0.00021917,2]
[363116559,1748587840567,-1215.6,0.00021917,2]
[363116560,1748587840577,-167.44396597,0.00021917,2]
[363116561,1748587840586,-465.25,0.00021917,2]
[363116562,1748587840596,-420.0,0.00021917,2]
[363116563,1748587840605,-420.0,0.00021917,2]
[363116565,1748587840615,-512.65235275,0.00021917,2]